lending/lending_fUSD_20250621
["ID","MTS","AMOUNT","RATE_DAILY","PERIOD"]
[366834355,1750497034150,-151.0,0.00021274,2]
[366834356,1750497034159,-151.826649,0.00021274,2]
[366834357,1750497034169,-151.885384,0.00021274,2]
[366834358,1750497034179,-579.460892,0.00021274,2]
[366834359,1750497034374,-579.460892,0.00021274,2]
[366834360,1750497034383,-151.0,0.00021274,2]
[366834361,1750497034394,-336.654073,0.00021274,2]
[366834362,1750497034404,-336.654073,0.00021274,2]
[366834363,1750497034413,-151.651537,0.00021274,2]
[366834364,1750497034423,-151.651537,0.00021274,2]
[366834365,1750497034432,-3255.99204981,0.000213,2]
[366834366,1750497034441,-3376.46375566,0.00021355,2]
[366834367,1750497034451,-199.236804,0.0002137,2]
[366834368,1750497034461,-151.0,0.0002137,2]
[366834369,1750497034470,-579.460892,0.0002137,2]
[366834370,1750497034480,-579.460892,0.0002137,2]
[366834371,1750497034490,-151.0,0.0002137,2]
[366834372,1750497034500,-336.654073,0.0002137,2]
[366834373,1750497034509,-336.654073,0.0002137,2]
[366834374,1750497034519,-151.651537,0.0002137,2]
[366834375,1750497034528,-151.651537,0.0002137,2]
[366834376,1750497034539,-151.0,0.00021374,2]
[366834377,1750497034549,-151.0,0.00021374,2]
[366834378,1750497034559,-579.460892,0.00021374,2]
[366834379,1750497034568,-579.460892,0.00021374,2]
[366834380,1750497034578,-579.460892,0.00021374,2]
[366834381,1750497034588,-579.460892,0.00021374,2]
[366834382,1750497034598,-151.0,0.00021374,2]
[366834383,1750497034608,-151.0,0.00021374,2]
[366834384,1750497034618,-336.654073,0.00021374,2]
[366834385,1750497034627,-336.654073,0.00021374,2]
[366834386,1750497034638,-336.654073,0.00021374,2]
[366834387,1750497034648,-336.654073,0.00021374,2]
[366834388,1750497034657,-151.651537,0.00021374,2]
[366834389,1750497034667,-151.651537,0.00021374,2]
[366834390,1750497034676,-151.651537,0.00021374,2]
[366834391,1750497034685,-151.651537,0.00021374,2]
[366834392,1750497034695,-151.0,0.00021385,2]
[366834393,1750497034704,-579.460892,0.00021385,2]
[366834394,1750497034714,-579.460892,0.00021385,2]
[366834395,1750497034723,-151.0,0.00021385,2]
[366834396,1750497034732,-336.654073,0.00021385,2]
[366834397,1750497034742,-336.654073,0.00021385,2]
[366834398,1750497034751,-151.651537,0.00021385,2]
[366834399,1750497034760,-151.651537,0.00021385,2]
[366834400,1750497034770,-3501.39291462,0.0002141,2]
[366834401,1750497034779,-3630.94445246,0.00021465,2]
[366834402,1750497034789,-874.286457,0.00021482,4]
[366834403,1750497034798,-3765.2893972,0.0002152,2]
[366834404,1750497034808,-244.49,0.00021529,2]
[366834405,1750497034818,-8418.34913244,0.0002154,2]
[366834406,1750497034828,-461.75424983,0.00021635,2]
[366834407,1750497034837,-270.0,0.00021643,2]
[366834408,1750497034847,-834.26476573,0.00021644,7]
[366834409,1750497034856,-249.34,0.00021644,2]
[366834410,1750497034866,-248.87,0.00021644,2]
[366834411,1750497034875,-579.460892,0.00021649,2]
[366834412,1750497034885,-579.460892,0.00021649,2]
[366834413,1750497034897,-336.654073,0.00021649,2]
[366834414,1750497034907,-336.654073,0.00021649,2]
[366834415,1750497034917,-402.88,0.0002166,2]
[366834416,1750497034927,-2233.0,0.00021673,2]
[366834417,1750497034937,-284.542049,0.0002168,2]
[366834418,1750497034947,-151.0,0.0002168,2]
[366834419,1750497034957,-151.651537,0.0002168,2]
[366834420,1750497034967,-151.651537,0.0002168,2]
[366834421,1750497034978,-151.221595,0.0002168,2]
[366834422,1750497034988,-151.383353,0.0002168,2]
[366834423,1750497034997,-151.0,0.0002168,2]
[366834424,1750497035006,-151.0,0.0002168,2]
[366834425,1750497035016,-151.0,0.0002168,2]
[366834426,1750497035025,-1532.51,0.00021694,2]
[366834427,1750497035035,-151.0,0.00021697,2]
[366834428,1750497035044,-151.0,0.00021697,2]
[366834429,1750497035054,-8418.34913244,0.00021697,2]
[366834430,1750497035065,-2000.0,0.00021735,2]
[366834431,1750497035075,-200.0,0.00021735,2]
[366834432,1750497035085,-168.0,0.00021754,2]
[366834433,1750497035095,-166.0,0.00021786,2]
[366834434,1750497035105,-218.24,0.00021799,2]
[366834435,1750497035115,-300.0,0.000218,7]
[366834436,1750497035125,-579.460892,0.000218,2]
[366834437,1750497035135,-579.460892,0.000218,2]
[366834438,1750497035144,-151.0,0.000218,2]
[366834439,1750497035154,-336.654073,0.000218,2]
[366834440,1750497035164,-336.654073,0.000218,2]
[366834441,1750497035174,-151.651537,0.000218,2]
[366834442,1750497035184,-151.651537,0.000218,2]
[366834443,1750497035194,-270.0,0.00021841,2]
[366834444,1750497035204,-8418.34913244,0.00021855,2]
[366834445,1750497035214,-151.52008,0.00021855,2]
[366834446,1750497035223,-152.469498,0.00021855,2]
[366834447,1750497035232,-151.0,0.00021855,2]
[366834448,1750497035242,-151.0,0.00021855,2]
[366834449,1750497035251,-168.0,0.00021868,2]
[366834450,1750497035261,-151.0,0.00021873,2]
[366834451,1750497035271,-201.135402,0.00021873,2]
[366834452,1750497035280,-201.135402,0.00021873,2]
[366834453,1750497035290,-151.0,0.00021873,2]
[366834454,1750497035299,-151.0,0.00021873,2]
[366834455,1750497035309,-151.0,0.00021873,2]
[366834456,1750497035319,-3331.29906,0.00021873,2]
[366834457,1750497035329,-3331.29906,0.00021873,2]
[366834458,1750497035339,-151.0,0.00021873,2]
[366834459,1750497035349,-670.437576,0.00021873,2]
[366834460,1750497035358,-670.437576,0.00021873,2]
[366834461,1750497035368,-216.980025,0.00021873,2]
[366834462,1750497035378,-216.980025,0.00021873,2]
[366834463,1750497035387,-171.047822,0.00021887,2]
[366834464,1750497035397,-151.651537,0.00021887,2]
[366834465,1750497035407,-151.651537,0.00021887,2]
[366834466,1750497035416,-156.587,0.00021899,2]
[366834467,1750497035426,-215.0738,0.00021899,2]
[366834468,1750497035445,-693.3919763,0.00021899,2]
[366834469,1750497035463,-700.0,0.000219,7]
[366834470,1750497035483,-150.0,0.00021918,2]
[366834471,1750497035504,-152.0,0.00021918,2]
[366834472,1750497035521,-152.0,0.00021918,2]
[366834473,1750497035540,-579.460892,0.00021921,7]
[366834474,1750497035561,-579.460892,0.00021921,7]
[366834475,1750497035580,-336.654073,0.00021921,7]
[366834476,1750497035602,-336.654073,0.00021921,7]
[366834477,1750497035621,-151.0,0.00021921,7]
[366834478,1750497035641,-262.088657,0.00021921,7]
[366834479,1750497035657,-262.088657,0.00021921,7]
[366834480,1750497035672,-168.0,0.00021951,2]
[366834481,1750497035690,-168.0,0.00021985,2]
[366834482,1750497035705,-244.49,0.0002199,2]
[366834483,1750497035723,-10538.79851357,0.00022,2]
[366834484,1750497035737,-579.460892,0.00022,7]
[366834485,1750497035753,-579.460894,0.00022,7]
[366834486,1750497035768,-336.654073,0.00022,7]
[366834487,1750497035790,-336.654074,0.00022,7]
[366834488,1750497035805,-151.651537,0.00022,7]
[366834489,1750497035821,-151.651545,0.00022,7]
[366834490,1750497035836,-151.0,0.00022,7]
[366834491,1750497035853,-151.0,0.00022,7]
[366834492,1750497035869,-209.459053,0.00022,7]
[366834493,1750497035888,-209.459053,0.00022,7]
[366834494,1750497035906,-151.0,0.00022,7]
[366834495,1750497035921,-151.0,0.00022,7]
[366834496,1750497035937,-151.0,0.00022,7]
[366834497,1750497035955,-195.0,0.00022,2]
[366834498,1750497035971,-760.323547,0.00022,7]
[366834499,1750497035987,-760.323547,0.00022,7]
[366834500,1750497036003,-8418.34913244,0.00022012,2]
[366834501,1750497036019,-168.0,0.00022016,2]
[366834502,1750497036034,-151.0,0.00022114,7]
[366834503,1750497036050,-151.0,0.00022114,7]
[366834504,1750497036066,-326.537439,0.00022114,7]
[366834505,1750497036083,-326.537439,0.00022114,7]
[366834506,1750497036099,-162.37552104,0.00022141,2]
[366834507,1750497036115,-5000.0,0.00022141,2]
[366834508,1750497036131,-39999.32318599,0.00022155,2]
[366834509,1750497036147,-153.251281,0.00022155,7]
[366834510,1750497036163,-151.394275,0.00022155,7]
[366834511,1750497036179,-151.334715,0.00022155,7]
[366834512,1750497036194,-151.0,0.00022155,7]
[366834513,1750497036210,-151.0,0.00022155,7]
[366834514,1750497036226,-151.0,0.00022155,7]
[366834515,1750497036241,-188.178497,0.00022155,7]
[366834516,1750497036258,-188.178497,0.00022155,7]
[366834517,1750497036274,-1031.908493,0.00022155,7]
[366834518,1750497036291,-151.0,0.00022155,7]
[366834519,1750497036308,-1031.908493,0.00022155,7]
[366834520,1750497036323,-151.0,0.00022155,7]
[366834521,1750497036340,-151.0,0.00022155,7]
[366834522,1750497036354,-221.426983,0.00022155,7]
[366834523,1750497036369,-151.0,0.00022155,7]
[366834524,1750497036385,-361.519088,0.00022155,7]
[366834525,1750497036401,-361.519088,0.00022155,7]
[366834526,1750497036419,-470.446579,0.00022155,7]
[366834527,1750497036435,-470.446579,0.00022155,7]
[366834528,1750497036452,-275.394411,0.00022155,7]
[366834529,1750497036469,-275.394411,0.00022155,7]
[366834530,1750497036486,-1492.995128,0.00022155,7]
[366834531,1750497036503,-1492.995128,0.00022155,7]
[366834532,1750497036518,-483.849451,0.00022155,7]
[366834533,1750497036534,-483.849451,0.00022155,7]
[366834534,1750497036549,-151.0,0.00022155,7]
[366834535,1750497036565,-151.0,0.00022155,7]
[366834536,1750497036581,-151.0,0.00022155,7]
[366834537,1750497036597,-151.0,0.00022155,7]
[366834538,1750497036614,-151.0,0.00022155,7]
[366834539,1750497036629,-201.097941,0.00022155,7]
[366834540,1750497036645,-151.0,0.00022155,7]
[366834541,1750497036660,-8418.34913244,0.0002217,2]
[366834542,1750497036677,-195.0,0.00022192,7]
[366834543,1750497036693,-151.0,0.000222,2]
[366834544,1750497036709,-350.0,0.000222,2]
[366834545,1750497036725,-224.0,0.00022205,2]
[366834546,1750497036742,-240.50684534,0.00022222,2]
[366834547,1750497036757,-1595.62,0.00022223,2]
[366834548,1750497036774,-928.96,0.00022223,2]
[366834549,1750497036790,-4130.58,0.00022231,2]
[366834550,1750497036806,-938.67626028,0.00022231,2]
[366834551,1750497036822,-461.75424977,0.00022234,2]
[366834552,1750497036837,-1000.0,0.0002224,2]
[366834553,1750497036854,-1000.0,0.0002224,2]
[366834554,1750497036870,-1000.0,0.0002224,2]
[366834555,1750497036885,-1000.0,0.0002224,2]
[366834556,1750497036903,-1000.0,0.0002224,2]
[366834557,1750497036919,-1000.0,0.0002224,2]
[366834558,1750497036935,-1000.0,0.0002224,2]
[366834559,1750497036952,-1000.0,0.0002224,2]
[366834560,1750497036968,-1000.0,0.0002224,2]
[366834561,1750497036984,-1061.43858665,0.0002224,2]
[366834562,1750497037000,-151.0,0.00022241,7]
[366834563,1750497037015,-151.0,0.00022241,7]
[366834564,1750497037031,-151.0,0.00022241,7]
[366834565,1750497037046,-151.0,0.00022241,7]
[366834566,1750497037062,-152.009671,0.00022241,7]
[366834567,1750497037077,-151.0,0.00022241,7]
[366834568,1750497037093,-151.0,0.00022241,7]
[366834569,1750497037109,-151.0,0.00022241,7]
[366834570,1750497037124,-151.0,0.00022241,7]
[366834571,1750497037139,-326.537439,0.00022241,7]
[366834572,1750497037156,-326.537439,0.00022241,7]
[366834573,1750497037172,-326.537439,0.00022241,7]
[366834574,1750497037188,-326.537439,0.00022241,7]
[366834575,1750497037203,-361.519088,0.00022241,7]
[366834576,1750497037216,-151.0,0.00022241,7]
[366834577,1750497037227,-361.519088,0.00022241,7]
[366834578,1750497037502,-151.0,0.00022241,7]
[366834579,1750497037526,-361.519088,0.00022241,7]
[366834580,1750497037549,-361.519088,0.00022241,7]
[366834581,1750497037560,-151.0,0.00022241,7]
[366834582,1750497037569,-265.152194,0.00022241,7]
[366834583,1750497037579,-151.0,0.00022241,7]
[366834584,1750497037589,-151.0,0.00022241,7]
[366834585,1750497037599,-151.0,0.00022241,7]
[366834586,1750497037609,-152.284232,0.00022241,7]
[366834587,1750497037619,-1492.995128,0.00022241,7]
[366834588,1750497037630,-1492.995128,0.00022241,7]
[366834589,1750497037640,-1492.995128,0.00022241,7]
[366834590,1750497037650,-1492.995128,0.00022241,7]
[366834591,1750497037660,-201.135402,0.00022241,7]
[366834592,1750497037670,-201.135402,0.00022241,7]
[366834593,1750497037679,-201.135402,0.00022241,7]
[366834594,1750497037689,-201.135402,0.00022241,7]
[366834595,1750497037699,-201.135402,0.00022241,7]
[366834596,1750497037709,-201.135402,0.00022241,7]
[366834597,1750497037718,-2270.6971943,0.00022241,2]
[366834598,1750497037728,-262.088657,0.00022241,7]
[366834599,1750497037737,-262.088657,0.00022241,7]
[366834600,1750497037748,-151.0,0.00022241,7]
[366834601,1750497037757,-151.0,0.00022241,7]
[366834602,1750497037767,-262.088657,0.00022241,7]
[366834603,1750497037777,-262.088657,0.00022241,7]
[366834604,1750497037786,-151.0,0.00022241,7]
[366834605,1750497037796,-209.459053,0.00022241,7]
[366834606,1750497037805,-209.459053,0.00022241,7]
[366834607,1750497037815,-209.459053,0.00022241,7]
[366834608,1750497037824,-209.459053,0.00022241,7]
[366834609,1750497037835,-209.459053,0.00022241,7]
[366834610,1750497037845,-209.459053,0.00022241,7]
[366834611,1750497037854,-151.0,0.00022241,7]
[366834612,1750497037864,-151.0,0.00022241,7]
[366834613,1750497037873,-151.0,0.00022241,7]
[366834614,1750497037883,-151.0,0.00022241,7]
[366834615,1750497037894,-151.0,0.00022241,7]
[366834616,1750497037907,-151.0,0.00022241,7]
[366834617,1750497037917,-206.162097,0.00022241,7]
[366834618,1750497037926,-152.144241,0.00022241,7]
[366834619,1750497037937,-3331.29906,0.00022241,7]
[366834620,1750497037946,-3331.29906,0.00022241,7]
[366834621,1750497037956,-3331.29906,0.00022241,7]
[366834622,1750497037966,-3331.29906,0.00022241,7]
[366834623,1750497037976,-151.0,0.00022241,7]
[366834624,1750497037986,-3331.29906,0.00022241,7]
[366834625,1750497037996,-3331.29906,0.00022241,7]
[366834626,1750497038006,-151.0,0.00022241,7]
[366834627,1750497038017,-151.0,0.00022241,7]
[366834628,1750497038026,-529632.634021,0.00022241,2]
[366834629,1750497038037,-151.0,0.00022241,7]
[366834630,1750497038047,-151.0,0.00022241,7]
[366834631,1750497038057,-151.0,0.00022241,7]
[366834632,1750497038067,-197.971267,0.00022241,7]
[366834633,1750497038077,-151.0,0.00022241,7]
[366834635,1750497038086,-151.0,0.00022241,7]
[366834637,1750497038096,-151.0,0.00022241,7]
[366834639,1750497038107,-151.0,0.00022241,7]
[366834640,1750497038116,-151.0,0.00022241,7]
[366834641,1750497038127,-151.0,0.00022241,7]
[366834643,1750497038136,-151.440354,0.00022241,7]
[366834645,1750497038145,-760.323547,0.00022241,7]
[366834646,1750497038155,-760.323547,0.00022241,7]
[366834648,1750497038164,-760.323547,0.00022241,7]
[366834651,1750497038174,-760.323547,0.00022241,7]
[366834652,1750497038184,-760.323547,0.00022241,7]
[366834654,1750497038193,-760.323547,0.00022241,7]
[366834656,1750497038202,-170.133879,0.00022241,7]
[366834658,1750497038211,-30714.6221633,0.00022241,2]
[366834660,1750497038221,-21565.8506294,0.00022241,2]
[366834662,1750497038230,-670.437576,0.00022241,7]
[366834664,1750497038240,-670.437576,0.00022241,7]
[366834666,1750497038249,-670.437576,0.00022241,7]
[366834669,1750497038259,-670.437576,0.00022241,7]
[366834671,1750497038269,-670.437576,0.00022241,7]
[366834673,1750497038278,-670.437576,0.00022241,7]
[366834675,1750497038287,-39625.2666784,0.00022241,2]
[366834677,1750497038296,-151.0,0.00022241,7]
[366834679,1750497038306,-151.0,0.00022241,7]
[366834681,1750497038315,-151.0,0.00022241,7]
[366834683,1750497038325,-216.980025,0.00022241,7]
[366834685,1750497038334,-216.980025,0.00022241,7]
[366834687,1750497038343,-216.980025,0.00022241,7]
[366834689,1750497038352,-216.980025,0.00022241,7]
[366834691,1750497038361,-216.980025,0.00022241,7]
[366834693,1750497038371,-216.980025,0.00022241,7]
[366834694,1750497038380,-266158.28799693,0.00022241,2]
[366834696,1750497038389,-151.0,0.00022256,7]
[366834698,1750497038399,-298.686225,0.00022256,7]
[366834700,1750497038408,-151.0,0.00022256,7]
[366834702,1750497038417,-151.0,0.00022256,7]
[366834704,1750497038426,-283.420116,0.00022256,7]
[366834706,1750497038435,-283.420116,0.00022256,7]
[366834708,1750497038444,-188.178497,0.00022256,7]
[366834710,1750497038454,-188.178497,0.00022256,7]
[366834712,1750497038463,-1031.908493,0.00022256,7]
[366834714,1750497038473,-1031.908493,0.00022256,7]
[366834716,1750497038483,-470.446579,0.00022256,7]
[366834718,1750497038493,-470.446579,0.00022256,7]
[366834720,1750497038502,-275.394411,0.00022256,7]
[366834722,1750497038511,-275.394411,0.00022256,7]
[366834724,1750497038520,-483.849451,0.00022256,7]
[366834726,1750497038530,-483.849451,0.00022256,7]
[366834728,1750497038540,-272.0,0.00022271,2]
[366834730,1750497038549,-151.0,0.00022294,7]
[366834732,1750497038559,-151.0,0.00022294,7]
[366834734,1750497038568,-151.0,0.00022295,2]
[366834736,1750497038579,-383.0,0.000223,2]
[366834738,1750497038588,-834.26476573,0.000223,7]
[366834740,1750497038597,-8418.34913244,0.00022327,2]
[366834742,1750497038606,-505.04737215,0.00022366,2]
[366834744,1750497038616,-151.0,0.00022381,7]
[366834746,1750497038626,-151.0,0.00022381,7]
[366834748,1750497038635,-151.0,0.00022381,7]
[366834750,1750497038644,-151.0,0.00022381,7]
[366834752,1750497038654,-151.0,0.00022383,7]
[366834754,1750497038663,-219.724142,0.00022383,7]
[366834756,1750497038673,-219.724142,0.00022383,7]
[366834758,1750497038683,-151.0,0.00022383,7]
[366834760,1750497038692,-151.56475272,0.00022466,2]
[366834762,1750497038701,-8418.34913244,0.00022485,2]
[366834764,1750497038711,-1000.0,0.00022534,2]
[366834766,1750497038722,-156.71,0.0002256,2]
[366834768,1750497038732,-151.0,0.00022562,7]
[366834770,1750497038741,-219.724142,0.00022562,7]
[366834772,1750497038751,-219.724142,0.00022562,7]
[366834773,1750497038762,-151.0,0.00022562,7]
[366834776,1750497038772,-151.0,0.00022562,7]
[366834777,1750497038782,-261.864563,0.00022562,7]
[366834779,1750497038791,-261.864563,0.00022562,7]
[366834781,1750497038800,-151.0,0.00022562,7]
[366834783,1750497038811,-484.07947,0.00022579,7]
[366834786,1750497038821,-484.07947,0.00022579,7]
[366834787,1750497038830,-151.0,0.00022579,7]
[366834789,1750497038842,-1100.0,0.000226,8]
[366834791,1750497038851,-256.011247,0.0002261,7]
[366834793,1750497038860,-151.0,0.0002261,7]
[366834795,1750497038871,-270.0,0.0002261,2]
[366834797,1750497038880,-3708.3213018,0.00022642,2]
[366834854,1750497044035,-3678.17563283,0.00020851,2]
[366834855,1750497044069,-1867.45318272,0.00020851,2]
[366834856,1750497044079,-159.57839096,0.00021172,2]
[366834857,1750497044089,-1999.36225622,0.000218,2]
[366834858,1750497044926,-5545.6288155,0.00021056,2]
[366834859,1750497044939,-10.63774378,0.000218,2]
[366834860,1750497044949,-180.380134,0.00022241,2]
[366834861,1750497044958,-4710.02783064,0.00022642,2]
[366834862,1750497044968,-599.87486308,0.00022675,2]
[366834863,1750497044978,-95.01052027,0.000227,2]
[366834864,1750497045438,-6293.76704158,0.000227,2]
[366834868,1750497045877,200.0,0.00011073,2]
[366834869,1750497046804,-200.0,0.0001216,3]
[366834870,1750497046814,-200.0,0.00013247,4]
[366834871,1750497046824,-200.0,0.00014334,5]
[366834872,1750497046834,-200.0,0.00015422,7]
[366834873,1750497046843,-200.0,0.00016509,8]
[366834874,1750497046852,-1000.0,0.00020851,2]
[366834875,1750497046863,-1502.29240483,0.000227,2]
[366834876,1750497046872,-1790.62313577,0.000227,2]
[366834877,1750497046882,-1164.22741807,0.000227,2]
[366834878,1750497046893,-1500.0,0.000227,8]
[366834879,1750497046911,-415.7480315,0.00022735,2]
[366834880,1750497046926,-151.0,0.00022752,7]
[366834881,1750497046936,-151.0,0.00022752,7]
[366834882,1750497046946,-228.601079,0.00022752,7]
[366834883,1750497046956,-261.864563,0.00022752,7]
[366834884,1750497046966,-261.864563,0.00022752,7]
[366834885,1750497046976,-262.562466,0.00022752,7]
[366834886,1750497046986,-40697.0,0.00022767,2]
[366834887,1750497046995,-443.0,0.00022767,2]
[366834888,1750497047005,-500.0,0.00022773,2]
[366834889,1750497047018,-500.0,0.00022773,2]
[366834890,1750497047028,-500.0,0.00022773,2]
[366834891,1750497047038,-500.0,0.00022773,2]
[366834892,1750497047048,-500.0,0.00022773,2]
[366834893,1750497047058,-500.0,0.00022773,2]
[366834894,1750497047069,-272.9488169,0.00022773,2]
[366834895,1750497047079,-938.67626028,0.00022789,2]
[366834896,1750497047090,-938.67626028,0.00022789,2]
[366834897,1750497047099,-373263.60285287,0.00022799,5]
[366834898,1750497047237,-200.0,0.00017596,9]
[366834899,1750497047247,-252.04012321,0.00022799,5]
[366834900,1750497047310,-200.0,0.00018684,11]
[366834901,1750497047319,-439.42342609,0.00022799,5]
[366834902,1750497047330,-735.915,0.00022799,5]
[366834903,1750497048869,-200.0,0.00019771,12]
[366834904,1750497048879,-200.0,0.00020858,13]
[366834905,1750497048889,-196.7540996,0.00021262,2]
[366834906,1750497048955,-299.75183059,0.00021262,2]
[366834907,1750497048967,-669.0,0.00021262,2]
[366834908,1750497048980,-1341.48244802,0.00021262,2]
[366834909,1750497048991,-3038.64043729,0.00021262,2]
[366834910,1750497049001,-200.0,0.00021945,14]
[366834911,1750497049011,-227.89400332,0.0002224,2]
[366834912,1750497049021,-163.67846751,0.00022699,4]
[366834913,1750497049032,-151.0,0.000227,2]
[366834914,1750497049042,-400537.57735377,0.00022799,5]
[366834915,1750497049432,-1112.74325028,0.00022799,5]
[366834916,1750497049446,-2136.87900831,0.00022799,5]
[366834917,1750497049485,-5694.56584455,0.00022799,5]
[366834918,1750497049497,-323.57617519,0.00022799,5]
[366834919,1750497049536,-914.60609261,0.00022799,5]
[366834920,1750497072083,256.0,0.00011073,2]
[366834921,1750497111511,311.0,0.000247,120]
[366834922,1750497112314,903.0,0.000247,120]
[366834923,1750497128187,1783.0,0.000247,120]
[366834924,1750497129035,1756.0,0.000247,120]
[366834925,1750497129825,1870.0,0.000247,120]
[366834926,1750497141614,178.0,0.000247,120]
[366834927,1750497231921,800.0,0.000247,120]
[366834928,1750497233175,208.0,0.000247,120]
[366834929,1750497233871,1070.0,0.000247,120]
[366834930,1750497247967,1846.0,0.000247,120]
[366834931,1750497248864,819.0,0.000247,120]
[366834932,1750497249730,851.0,0.000247,120]
[366834933,1750497291169,1542.0,0.000247,120]
[366834934,1750497291992,1538.0,0.000247,120]
[366834935,1750497292916,650.0,0.000247,120]
[366834936,1750497357764,1435.0,0.000247,120]
[366834937,1750497480090,402.0,0.000247,120]
[366834944,1750497615765,426.68,0.000247,120]
[366834945,1750497690078,-15000.0,0.00023,30]
[366834946,1750497724781,-1500.0,0.000229,14]
[366834947,1750497724804,-1500.0,0.000229,14]
[366834948,1750497724827,-1500.0,0.000229,14]
[366834949,1750497724850,-1500.0,0.000229,14]
[366834950,1750497724872,-1500.0,0.000229,14]
[366834951,1750497724894,-1500.0,0.000229,14]
[366834952,1750497724917,-1500.0,0.000229,14]
[366834953,1750497724940,-1500.0,0.000229,14]
[366834954,1750497724962,-917.915994,0.000229,14]
[366834955,1750497728942,834.26476573,0.00023,30]
[366834956,1750497757996,-200.0,0.00024931,120]
[366834957,1750497774163,-295.0,0.00025068,120]
[366834958,1750497778701,1159.0,0.000247,120]
[366834959,1750497780019,1350.0,0.000247,120]
[366834960,1750497780883,1000.0,0.000247,120]
[366834961,1750497809003,-503.75407807,0.00025,30]
[366834962,1750497809026,-505.74180432,0.00025,30]
[366834963,1750497809049,-500.0,0.00025,30]
[366834964,1750497809073,-561.38294796,0.00025,30]
[366834965,1750497809095,-502.56745581,0.00025,30]
[366834966,1750497809116,-501.20707651,0.00025,30]
[366834967,1750497809138,-503.67170499,0.00025,30]
[366834968,1750497809161,-507.63061598,0.00025,30]
[366834969,1750497809182,-500.0,0.00025,30]
[366834970,1750497809204,-507.62311075,0.00025,30]
[366834971,1750497826744,-0.45363044,0.00025068,120]
[366834972,1750497826776,-402.54636956,0.00026474,120]
[366834973,1750497837649,0.42120561,0.00025,30]
[366834974,1750497847007,-0.33363044,0.00026474,120]
[366834975,1750497847038,-150.5,0.0002737,120]
[366834976,1750497847060,-1849.16636956,0.0002737,120]
[366834977,1750497891241,-1385.83363044,0.0002737,120]
[366834978,1750497891276,-320.0,0.0002737,120]
[366834979,1750497891312,-377.0,0.0002737,120]
[366834980,1750497891348,-150.5,0.0002738,120]
[366834981,1750497891384,-3235.0,0.0002738,120]
[366834982,1750497891419,-320.0,0.0002738,120]
[366834983,1750497891454,-377.0,0.0002738,120]
[366834984,1750497891490,-150.5,0.0002739,120]
[366834985,1750497891527,-3235.0,0.0002739,120]
[366834986,1750497891562,-320.0,0.0002739,120]
[366834987,1750497891597,-377.0,0.0002739,120]
[366834988,1750497891633,-500.0,0.00027399,120]
[366834989,1750497891682,-250.0,0.00028,120]
[366834990,1750497933645,150.5,0.0002739,120]
[366834991,1750497933918,150.5,0.0002738,120]
[366834992,1750497934041,1449.16636956,0.0002739,120]
[366834993,1750497951344,842.0,0.000247,120]
[366834994,1750497952655,1724.0,0.000247,120]
[366834995,1750497955578,-150.5,0.0002737,120]
[366834996,1750497955600,-978.5,0.0002737,120]
[366834997,1750498003505,194.6533571,0.00023,14]
[366834998,1750498012257,-406.67,0.00024913,120]
[366834999,1750498012291,-406.67,0.00027178,120]